Workbook

Sheet Interés al Vencimiento
B3: Depósito a plazo fijo
B5: Pago de Interés al Vencimiento
B6: Capital | C6: 10000
B7: Moneda | C7: Soles
B8: Plazo en días | C8: 1080
B9: TREA | C9: 0.0325
B10: Tasa del plazo | C10: =((1+$C$9)^(C8/360)-1) -> 0.1007030781
B11: Interés al Vencimiento | C11: =C10*C6 -> 1007.030781
B13: Pre-cancelación:
B14: TEA de Penalidad | C14: =+IF($C$7="Soles",0.5%,0.1%) -> 0.005
B15: Días transcurridos | C15: 90
B16: Tasa del plazo penalidad | C16: =((1+$C$14)^(C15/360)-1) -> 0.001247663063
B17: Interés al Vencimiento por Pre-cancelación | C17: =C6*C16 -> 12.47663063
C19: Datos variables
B21: OP011v05 SimuladorDPF- 09/24

Sheet Interés Mensual
B3: Depósito a plazo fijo
B5: Pago de Interés Mensual
B6: Capital | C6: 10000
B7: Moneda | C7: Soles
B8: Plazo en días | C8: 1080
B9: TEA | C9: 0.0325
B10: Tasa del plazo | C10: =((1+$C$9)^(30/360)-1) -> 0.002668808768
B11: TREA | C11: =+C9 -> 0.0325
B12: Interés Mensual | C12: =C10*C6 -> 26.68808768
B13: Interés total Abonado | C13: =+C8/30*C12 -> 960.7711563
B15: Pre-cancelación:
B16: TEA penalidad | C16: =+IF($C$7="Soles",0.5%,0.1%) -> 0.005
B17: Días transcurridos | C17: 90
B18: Tasa del plazo penalidad | C18: =((1+$C$16)^(30/360)-1) -> 0.0004157148447
B19: Interés total por Pre-cancelación | C19: =C6*C18*C17/30 -> 12.47144534
C21: Datos variables
B23: ='Interés al Vencimiento'!B21 -> OP011v05 SimuladorDPF- 09/24

Sheet Interés Adelantado
B3: Depósito a plazo fijo
B5: Pago de Interés Adelantado
B6: Capital | C6: 10000
B7: Moneda | C7: Soles
B8: Plazo en días | C8: 1080
B9: TEA | C9: 0.0325
B10: Tasa del plazo | C10: =((1+$C$9)^(C8/360)-1) -> 0.1007030781
B11: Tasa del plazo de interés adelantado | C11: =C10/(1+C10) -> 0.09148977606
B12: TREA | C12: =+C9 -> 0.0325
B13: Interés Adelantado | C13: =+C11*C6 -> 914.8977606
B15: Pre-cancelación:
B16: TEA penalidad | C16: =+IF($C$7="Soles",0.5%,0.1%) -> 0.005
B17: Días transcurridos | C17: 101
B18: Tasa del plazo penalidad | C18: =((1+$C$16)^(C17/360)-1) -> 0.001400261932
B19: Tasa del plazo de interés penalidad | C19: =C18/(1+C18) -> 0.00139830394
B20: Descuento del Capital por Pre-cancelación | C20: =C13-(C19*C6) -> 900.9147212
C22: Datos variables
B24: ='Interés al Vencimiento'!B21 -> OP011v05 SimuladorDPF- 09/24

Sheet Interés y Capital Mensual
A3: Depósito a plazo fijo
A5: Pago Interes y capital Mensual | F5: Pre-Cancelación:
A6: CAPITAL | D6: 100000 | F6: TEA penalidad | I6: 0.005
A7: TEA | D7: 0.005 | F7: Periodo de alerta | I7: 35
A8: Meses | D8: 36 | I8: 3
A9: Cuota Mensual (Interés+Capital) | D9: 1000
A10: CAPITAL remanente al final del periodo | D10: 65244.37398
A14: MES | B14: CAPITAL | C14: Porción capital | D14: Porción interés | E14: Pago Mensual | F14: Dscto.Capital Pre-cancelación (a periodo vencido) | H14: CAPITAL | I14: Dscto. Capital | J14: Interes mes
A15: 1 | B15: 100000 | C15: 958.4285155 | D15: 41.57148447 | E15: 1000 | F15: -34759.04398 | H15: 100000 | I15: -33800.61546 | J15: 34800.61546
A16: 2 | B16: 99041.57148 | C16: 958.8269485 | D16: 41.17305151 | E16: 1000 | F16: -81281.30859 | H16: 133800.6155 | I16: -45563.43767 | J16: 46563.43767
A17: 3 | B17: 98082.74454 | C17: 959.2255471 | D17: 40.77445292 | E17: 1000 | F17: -143660.3285 | H17: 179364.0531 | I17: -61419.7944 | J17: 62419.7944
A18: 4 | B18: 97123.51899 | C18: 959.6243114 | D18: 40.37568862 | E18: 1000 | F18: -227414.2137 | H18: 240783.8475 | I18: -82794.26087 | J18: 83794.26087
A19: 5 | B19: 96163.89468 | C19: 960.0232415 | D19: 39.97675854 | E19: 1000 | F19: -339981.4102 | H19: 323578.1084 | I19: -111607.1732 | J19: 112607.1732
A20: 6 | B20: 95203.87144 | C20: 960.4223374 | D20: 39.57766263 | E20: 1000 | F20: -491388.9889 | H20: 435185.2816 | I20: -150447.1564 | J20: 151447.1564
A21: 7 | B21: 94243.4491 | C21: 960.8215992 | D21: 39.17840081 | E21: 1000 | F21: -695153.5033 | H21: 585632.438 | I21: -202803.6928 | J21: 203803.6928
A22: 8 | B22: 93282.6275 | C22: 961.221027 | D22: 38.77897301 | E22: 1000 | F22: -969495.3503 | H22: 788436.1308 | I22: -273380.626 | J22: 274380.626
A23: 9 | B23: 92321.40647 | C23: 961.6206208 | D23: 38.37937916 | E23: 1000 | F23: -1338975.737 | H23: 1061816.757 | I23: -368518.7664 | J23: 369518.7664
A24: 10 | B24: 91359.78585 | C24: 962.0203808 | D24: 37.97961919 | E24: 1000 | F24: -1836703.323 | H24: 1430335.523 | I24: -496765.5652 | J24: 497765.5652
A25: 11 | B25: 90397.76547 | C25: 962.420307 | D25: 37.57969304 | E25: 1000 | F25: -2507308.783 | H25: 1927101.088 | I25: -669643.0393 | J25: 670643.0393
A26: 12 | B26: 89435.34516 | C26: 962.8203994 | D26: 37.17960063 | E26: 1000 | F26: -3410954.541 | H26: 2596744.128 | I26: -902682.9384 | J26: 903682.9384
A27: 13 | B27: 88472.52476 | C27: 963.2206581 | D27: 36.7793419 | E27: 1000 | F27: -4628739.918 | H27: 3499427.066 | I27: -1216822.157 | J27: 1217822.157
A28: 14 | B28: 87509.30411 | C28: 963.6210832 | D28: 36.37891677 | E28: 1000 | F28: -6269987.296 | H28: 4716249.223 | I28: -1640283.756 | J28: 1641283.756
A29: 15 | B29: 86545.68302 | C29: 964.0216748 | D29: 35.97832518 | E29: 1000 | F29: -8482063.916 | H29: 6356532.979 | I29: -2211112.598 | J29: 2212112.598
A30: 16 | B30: 85581.66135 | C30: 964.4224329 | D30: 35.57756706 | E30: 1000 | F30: -11463621.73 | H30: 8567645.577 | I30: -2980593.391 | J30: 2981593.391
A31: 17 | B31: 84617.23892 | C31: 964.8233577 | D31: 35.17664234 | E31: 1000 | F31: -15482444.79 | H31: 11548238.97 | I31: -4017858.236 | J31: 4018858.236
A32: 18 | B32: 83652.41556 | C32: 965.2244491 | D32: 34.77555094 | E32: 1000 | F32: -20899507.64 | H32: 15566097.2 | I32: -5416097.63 | J32: 5417097.63
A33: 19 | B33: 82687.19111 | C33: 965.6257072 | D33: 34.37429281 | E33: 1000 | F33: -28201406.21 | H33: 20982194.83 | I33: -7300932.939 | J33: 7301932.939
A34: 20 | B34: 81721.5654 | C34: 966.0271321 | D34: 33.97286787 | E34: 1000 | F34: -38044074.77 | H34: 28283127.77 | I34: -9841702.536 | J34: 9842702.536
A35: 21 | B35: 80755.53827 | C35: 966.4287239 | D35: 33.57127605 | E35: 1000 | F35: -51311716.79 | H35: 38124830.31 | I35: -13266675.59 | J35: 13267675.59
A36: 22 | B36: 79789.10955 | C36: 966.8304827 | D36: 33.16951729 | E36: 1000 | F36: -69196243.97 | H36: 51391505.9 | I36: -17883560.35 | J36: 17884560.35
A37: 23 | B37: 78822.27906 | C37: 967.2324085 | D37: 32.7675915 | E37: 1000 | F37: -93304360.62 | H37: 69275066.25 | I37: -24107149.41 | J37: 24108149.41
A38: 24 | B38: 77855.04665 | C38: 967.6345014 | D38: 32.36549863 | E38: 1000 | F38: -125801914 | H38: 93382215.66 | I38: -32496585.78 | J38: 32497585.78
A39: 25 | B39: 76887.41215 | C39: 968.0367614 | D39: 31.9632386 | E39: 1000 | F39: -169608479.7 | H39: 125878801.4 | I39: -43805597.64 | J39: 43806597.64
A40: 26 | B40: 75919.37539 | C40: 968.4391886 | D40: 31.56081135 | E40: 1000 | F40: -228659663.4 | H40: 169684399.1 | I40: -59050215.22 | J40: 59051215.22
A41: 27 | B41: 74950.9362 | C41: 968.8417832 | D41: 31.15821681 | E41: 1000 | F41: -308260685.7 | H41: 228734614.3 | I41: -79600053.55 | J41: 79601053.55
A42: 28 | B42: 73982.09442 | C42: 969.2445451 | D42: 30.75545489 | E42: 1000 | F42: -415563017.1 | H42: 308334667.8 | I42: -107301362.1 | J42: 107302362.1
A43: 29 | B43: 73012.84987 | C43: 969.6474745 | D43: 30.35252555 | E43: 1000 | F43: -560206883.2 | H43: 415636029.9 | I43: -144642896.5 | J43: 144643896.5
A44: 30 | B44: 72043.2024 | C44: 970.0505713 | D44: 29.9494287 | E44: 1000 | F44: -755187367.9 | H44: 560278926.4 | I44: -194979514.7 | J44: 194980514.7
A45: 31 | B45: 71073.15183 | C45: 970.4538357 | D45: 29.54616428 | E45: 1000 | F45: -1018021924 | H45: 755258441.1 | I45: -262833585.8 | J45: 262834585.8
A46: 32 | B46: 70102.69799 | C46: 970.8572678 | D46: 29.14273221 | E46: 1000 | F46: -1372324186 | H46: 1018092027 | I46: -354301291.3 | J46: 354302291.3
A47: 33 | B47: 69131.84073 | C47: 971.2608676 | D47: 28.73913243 | E47: 1000 | F47: -1849925479 | H47: 1372393318 | I47: -477600321.3 | J47: 477601321.3
A48: 34 | B48: 68160.57986 | C48: 971.6646351 | D48: 28.33536487 | E48: 1000 | F48: -2493734623 | H48: 1849993640 | I48: -643808172.5 | J48: 643809172.5
A49: 35 | B49: 67188.91522 | C49: 972.0685705 | D49: 27.93142946 | E49: 1000 | F49: -3361592974 | H49: 2493801812 | I49: -867857378.9 | J49: 867858378.9
A50: 36 | B50: 66216.84665 | C50: 972.4726739 | D50: 27.52732612 | E50: 1000 | F50: -4531471035 | H50: 3361659191 | I50: -1169877088 | J50: 1169878088
B51: 65244.37398
A53: ='Interés al Vencimiento'!B21 -> OP011v05 SimuladorDPF- 09/24

Sheet Cuota mixta 5años (hidden)
A1: Cálculo de abono mensual de Interés + Capital:
A2: CAPITAL INICIAL | D2: 280000
A3: Tasa 12 meses (TEA) | D3: 0.065
A4: Dscto.Capital mes1 | D4: 1527
A5: Abono Mensual Solicitado (Interés+Capital) | D5: =+E11 -> 3000.274398
A6: CAPITAL remanente al final del periodo | D6: =IF(B71>0,B71,"CAPITAL INSUFICIENTE") -> 172596.8889
D8: Datos variables
A10: MES | B10: CAPITAL | C10: Dscto.K | D10: Interes mes | E10: Abono Mensual
A11: 1 | B11: =+D2 -> 280000 | C11: =+D4 -> 1527 | D11: =((1+$D$3)^(30/360)-1)*B11 -> 1473.274398 | E11: =+D11+C11 -> 3000.274398
A12: 2 | B12: =+B11-C11 -> 278473 | C12: =(E11-D12) -> 1535.034607 | D12: =((1+$D$3)^(30/360)-1)*B12 -> 1465.23979 | E12: =+D12+C12 -> 3000.274398
A13: 3 | B13: =+B12-C12 -> 276937.9654 | C13: =(E12-D13) -> 1543.11149 | D13: 1457.162908 | E13: 3000.274398
A14: 4 | B14: 275394.8539 | C14: 1551.230871 | D14: 1449.043527 | E14: 3000.274398
A15: 5 | B15: 273843.623 | C15: 1559.392973 | D15: 1440.881424 | E15: 3000.274398
A16: 6 | B16: 272284.2301 | C16: 1567.598023 | D16: 1432.676375 | E16: 3000.274398
A17: 7 | B17: 270716.632 | C17: 1575.846244 | D17: 1424.428153 | E17: 3000.274398
A18: 8 | B18: 269140.7858 | C18: 1584.137865 | D18: 1416.136532 | E18: 3000.274398
A19: 9 | B19: 267556.6479 | C19: 1592.473114 | D19: 1407.801283 | E19: 3000.274398
A20: 10 | B20: 265964.1748 | C20: 1600.852221 | D20: 1399.422176 | E20: 3000.274398
A21: 11 | B21: 264363.3226 | C21: 1609.275416 | D21: 1390.998981 | E21: 3000.274398
A22: 12 | B22: 262754.0472 | C22: 1617.742931 | D22: 1382.531466 | E22: 3000.274398
A23: 13 | B23: 261136.3042 | C23: 1626.255 | D23: 1374.019398 | E23: 3000.274398
A24: 14 | B24: 259510.0492 | C24: 1634.811857 | D24: 1365.462541 | E24: 3000.274398
A25: 15 | B25: 257875.2374 | C25: 1643.413737 | D25: 1356.860661 | E25: 3000.274398
A26: 16 | B26: 256231.8237 | C26: 1652.060877 | D26: 1348.21352 | E26: 3000.274398
A27: 17 | B27: 254579.7628 | C27: 1660.753517 | D27: 1339.520881 | E27: 3000.274398
A28: 18 | B28: 252919.0093 | C28: 1669.491894 | D28: 1330.782504 | E28: 3000.274398
A29: 19 | B29: 251249.5174 | C29: 1678.27625 | D29: 1321.998148 | E29: 3000.274398
A30: 20 | B30: 249571.2411 | C30: 1687.106826 | D30: 1313.167571 | E30: 3000.274398
A31: 21 | B31: 247884.1343 | C31: 1695.983867 | D31: 1304.290531 | E31: 3000.274398
A32: 22 | B32: 246188.1504 | C32: 1704.907615 | D32: 1295.366782 | E32: 3000.274398
A33: 23 | B33: 244483.2428 | C33: 1713.878318 | D33: 1286.396079 | E33: 3000.274398
A34: 24 | B34: 242769.3645 | C34: 1722.896222 | D34: 1277.378176 | E34: 3000.274398
A35: 25 | B35: 241046.4683 | C35: 1731.961575 | D35: 1268.312823 | E35: 3000.274398
A36: 26 | B36: 239314.5067 | C36: 1741.074627 | D36: 1259.19977 | E36: 3000.274398
A37: 27 | B37: 237573.4321 | C37: 1750.23563 | D37: 1250.038768 | E37: 3000.274398
A38: 28 | B38: 235823.1964 | C38: 1759.444835 | D38: 1240.829563 | E38: 3000.274398
A39: 29 | B39: 234063.7516 | C39: 1768.702495 | D39: 1231.571902 | E39: 3000.274398
A40: 30 | B40: 232295.0491 | C40: 1778.008867 | D40: 1222.26553 | E40: 3000.274398
A41: 31 | B41: 230517.0402 | C41: 1787.364206 | D41: 1212.910191 | E41: 3000.274398
A42: 32 | B42: 228729.676 | C42: 1796.76877 | D42: 1203.505627 | E42: 3000.274398
A43: 33 | B43: 226932.9073 | C43: 1806.222818 | D43: 1194.051579 | E43: 3000.274398
A44: 34 | B44: 225126.6844 | C44: 1815.72661 | D44: 1184.547787 | E44: 3000.274398
A45: 35 | B45: 223310.9578 | C45: 1825.280409 | D45: 1174.993989 | E45: 3000.274398
A46: 36 | B46: 221485.6774 | C46: 1834.884476 | D46: 1165.389921 | E46: 3000.274398
A47: 37 | B47: 219650.7929 | C47: 1844.539077 | D47: 1155.73532 | E47: 3000.274398
A48: 38 | B48: 217806.2539 | C48: 1854.244478 | D48: 1146.029919 | E48: 3000.274398
A49: 39 | B49: 215952.0094 | C49: 1864.000946 | D49: 1136.273452 | E49: 3000.274398
A50: 40 | B50: 214088.0084 | C50: 1873.808749 | D50: 1126.465649 | E50: 3000.274398
A51: 41 | B51: 212214.1997 | C51: 1883.668158 | D51: 1116.60624 | E51: 3000.274398
A52: 42 | B52: 210330.5315 | C52: 1893.579443 | D52: 1106.694954 | E52: 3000.274398
A53: 43 | B53: 208436.9521 | C53: 1903.54288 | D53: 1096.731518 | E53: 3000.274398
A54: 44 | B54: 206533.4092 | C54: 1913.55874 | D54: 1086.715657 | E54: 3000.274398
A55: 45 | B55: 204619.8505 | C55: 1923.627301 | D55: 1076.647096 | E55: 3000.274398
A56: 46 | B56: 202696.2232 | C56: 1933.74884 | D56: 1066.525557 | E56: 3000.274398
A57: 47 | B57: 200762.4743 | C57: 1943.923635 | D57: 1056.350762 | E57: 3000.274398
A58: 48 | B58: 198818.5507 | C58: 1954.151967 | D58: 1046.12243 | E58: 3000.274398
A59: 49 | B59: 196864.3987 | C59: 1964.434117 | D59: 1035.84028 | E59: 3000.274398
A60: 50 | B60: 194899.9646 | C60: 1974.770369 | D60: 1025.504028 | E60: 3000.274398
A61: 51 | B61: 192925.1942 | C61: 1985.161007 | D61: 1015.11339 | E61: 3000.274398
A62: 52 | B62: 190940.0332 | C62: 1995.606317 | D62: 1004.66808 | E62: 3000.274398
A63: 53 | B63: 188944.4269 | C63: 2006.106588 | D63: 994.1678098 | E63: 3000.274398
A64: 54 | B64: 186938.3203 | C64: 2016.662107 | D64: 983.6122902 | E64: 3000.274398
A65: 55 | B65: 184921.6582 | C65: 2027.273167 | D65: 973.0012307 | E65: 3000.274398
A66: 56 | B66: 182894.3851 | C66: 2037.940058 | D66: 962.3343391 | E66: 3000.274398
A67: 57 | B67: 180856.445 | C67: 2048.663076 | D67: 951.6113216 | E67: 3000.274398
A68: 58 | B68: 178807.7819 | C68: 2059.442515 | D68: 940.8318828 | E68: 3000.274398
A69: 59 | B69: 176748.3394 | C69: 2070.278672 | D69: 929.9957259 | E69: 3000.274398
A70: 60 | B70: 174678.0607 | C70: 2081.171845 | D70: 919.1025525 | E70: 3000.274398
B71: 172596.8889

Sheet Cuota mixta (hidden)
A1: Cálculo de abono mensual de Interés + Capital: | G1: Pre-Cancelación de abono mensual de Interés + Capital:
A2: CAPITAL | D2: 600000 | G2: CAPITAL | J2: =+D2 -> 600000
A3: Tasa 12 meses (TEA) | D3: 0.07 | G3: Tasa 12 meses (TEA) penalidad | J3: 0.0125
A4: Dscto.Capital mes1 | D4: 6607.512768 | G4: Dscto.Capital mes1 | J4: 9378.552391
A5: Abono Mensual Solicitado (Interés+Capital) | D5: =+E11 -> 10000 | G5: Abono Mensual Solicitado (Interés+Capital) | J5: =+K11 -> 10000
A6: CAPITAL remanente al final del periodo | D6: =+B47 -> 337011.6271 | G6: CAPITAL remanente sin penalidad | J6: =+H23 -> 486814.042
G7: Dscto. del Capital por Penalidad | J7: =+B23-H23 -> 31382.98652
G8: CAPITAL neto | J8: =+J6-J7 -> 455431.0555
A10: MES | B10: CAPITAL | C10: Dscto.K | D10: Interes mes | E10: Abono Mensual | G10: MES | H10: CAPITAL | I10: Dscto.K | J10: Interes mes | K10: Abono Mensual
A11: 1 | B11: =+D2 -> 600000 | C11: =+D4 -> 6607.512768 | D11: =((1+$D$3)^(30/360)-1)*B11 -> 3392.487232 | E11: =+D11+C11 -> 10000 | G11: 1 | H11: =+J2 -> 600000 | I11: =+J4 -> 9378.552391 | J11: =((1+$J$3)^(30/360)-1)*H11 -> 621.4476088 | K11: =+J11+I11 -> 10000
A12: 2 | B12: =+B11-C11 -> 593392.4872 | C12: =(E11-D12) -> 6644.872605 | D12: =((1+$D$3)^(30/360)-1)*B12 -> 3355.127395 | E12: =+D12+C12 -> 10000 | G12: 2 | H12: =+H11-I11 -> 590621.4476 | I12: =(K11-J12) -> 9388.266189 | J12: =((1+$J$3)^(30/360)-1)*H12 -> 611.7338106 | K12: =+J12+I12 -> 10000
A13: 3 | B13: =+B12-C12 -> 586747.6146 | C13: =(E12-D13) -> 6682.443681 | D13: 3317.556319 | E13: 10000 | G13: 3 | H13: =+H12-I12 -> 581233.1814 | I13: =(K12-J13) -> 9397.990049 | J13: =((1+$J$3)^(30/360)-1)*H13 -> 602.0099513 | K13: =+J13+I13 -> 10000
A14: 4 | B14: 580065.1709 | C14: 6720.227189 | D14: 3279.772811 | E14: 10000 | G14: 4 | H14: =+H13-I13 -> 571835.1914 | I14: =(K13-J14) -> 9407.723979 | J14: =((1+$J$3)^(30/360)-1)*H14 -> 592.2760205 | K14: =+J14+I14 -> 10000
A15: 5 | B15: 573344.9438 | C15: 6758.224331 | D15: 3241.775669 | E15: 10000 | G15: 5 | H15: =+H14-I14 -> 562427.4674 | I15: =(K14-J15) -> 9417.467992 | J15: =((1+$J$3)^(30/360)-1)*H15 -> 582.5320079 | K15: =+J15+I15 -> 10000
A16: 6 | B16: 566586.7194 | C16: 6796.436314 | D16: 3203.563686 | E16: 10000 | G16: 6 | H16: =+H15-I15 -> 553009.9994 | I16: =(K15-J16) -> 9427.222097 | J16: =((1+$J$3)^(30/360)-1)*H16 -> 572.777903 | K16: =+J16+I16 -> 10000
A17: 7 | B17: 559790.2831 | C17: 6834.864353 | D17: 3165.135647 | E17: 10000 | G17: 7 | H17: 543582.7773 | I17: 9436.986305 | J17: 563.0136952 | K17: 10000
A18: 8 | B18: 552955.4188 | C18: 6873.50967 | D18: 3126.49033 | E18: 10000 | G18: 8 | H18: 534145.791 | I18: 9446.760626 | J18: 553.2393743 | K18: 10000
A19: 9 | B19: 546081.9091 | C19: 6912.373493 | D19: 3087.626507 | E19: 10000 | G19: 9 | H19: 524699.0304 | I19: 9456.54507 | J19: 543.4549296 | K19: 10000
A20: 10 | B20: 539169.5356 | C20: 6951.457057 | D20: 3048.542943 | E20: 10000 | G20: 10 | H20: 515242.4853 | I20: 9466.339649 | J20: 533.6603508 | K20: 10000
A21: 11 | B21: 532218.0785 | C21: 6990.761606 | D21: 3009.238394 | E21: 10000 | G21: 11 | H21: 505776.1457 | I21: 9476.144373 | J21: 523.8556272 | K21: 10000
A22: 12 | B22: 525227.3169 | C22: 7030.288389 | D22: 2969.711611 | E22: 10000 | G22: 12 | H22: 496300.0013 | I22: 9485.959252 | J22: 514.0407484 | K22: 10000
A23: 13 | B23: =+B22-C22 -> 518197.0285 | C23: 7070.038661 | D23: 2929.961339 | E23: 10000 | G23: 13 | H23: 486814.042 | I23: 9495.784296 | J23: 504.2157039 | K23: 10000
A24: 14 | B24: 511126.9899 | C24: 7110.013688 | D24: 2889.986312 | E24: 10000 | G24: 14 | H24: 477318.2577 | I24: 9505.619517 | J24: 494.3804832 | K24: 10000
A25: 15 | B25: 504016.9762 | C25: 7150.214739 | D25: 2849.785261 | E25: 10000 | G25: 15 | H25: 467812.6382 | I25: 9515.464924 | J25: 484.5350757 | K25: 10000
A26: 16 | B26: 496866.7615 | C26: 7190.643093 | D26: 2809.356907 | E26: 10000 | G26: 16 | H26: 458297.1733 | I26: 9525.320529 | J26: 474.6794708 | K26: 10000
A27: 17 | B27: 489676.1184 | C27: 7231.300034 | D27: 2768.699966 | E27: 10000 | G27: 17 | H27: 448771.8528 | I27: 9535.186342 | J27: 464.813658 | K27: 10000
A28: 18 | B28: 482444.8183 | C28: 7272.186856 | D28: 2727.813144 | E28: 10000 | G28: 18 | H28: 439236.6664 | I28: 9545.062373 | J28: 454.9376268 | K28: 10000
A29: 19 | B29: 475172.6315 | C29: 7313.304858 | D29: 2686.695142 | E29: 10000 | G29: 19 | H29: 429691.604 | I29: 9554.948634 | J29: 445.0513664 | K29: 10000
A30: 20 | B30: 467859.3266 | C30: 7354.655346 | D30: 2645.344654 | E30: 10000 | G30: 20 | H30: 420136.6554 | I30: 9564.845134 | J30: 435.1548665 | K30: 10000
A31: 21 | B31: 460504.6713 | C31: 7396.239637 | D31: 2603.760363 | E31: 10000 | G31: 21 | H31: 410571.8103 | I31: 9574.751884 | J31: 425.2481162 | K31: 10000
A32: 22 | B32: 453108.4316 | C32: 7438.059051 | D32: 2561.940949 | E32: 10000 | G32: 22 | H32: 400997.0584 | I32: 9584.668895 | J32: 415.3311051 | K32: 10000
A33: 23 | B33: 445670.3726 | C33: 7480.114919 | D33: 2519.885081 | E33: 10000 | G33: 23 | H33: 391412.3895 | I33: 9594.596177 | J33: 405.4038225 | K33: 10000
A34: 24 | B34: 438190.2577 | C34: 7522.408576 | D34: 2477.591424 | E34: 10000 | G34: 24 | H34: 381817.7933 | I34: 9604.533742 | J34: 395.4662578 | K34: 10000
A35: 25 | B35: 430667.8491 | C35: 7564.941368 | D35: 2435.058632 | E35: 10000 | G35: 25 | H35: 372213.2596 | I35: 9614.4816 | J35: 385.5184002 | K35: 10000
A36: 26 | B36: 423102.9077 | C36: 7607.714646 | D36: 2392.285354 | E36: 10000 | G36: 26 | H36: 362598.778 | I36: 9624.439761 | J36: 375.5602392 | K36: 10000
A37: 27 | B37: 415495.1931 | C37: 7650.729771 | D37: 2349.270229 | E37: 10000 | G37: 27 | H37: 352974.3382 | I37: 9634.408236 | J37: 365.5917641 | K37: 10000
A38: 28 | B38: 407844.4633 | C38: 7693.988109 | D38: 2306.011891 | E38: 10000 | G38: 28 | H38: 343339.93 | I38: 9644.387036 | J38: 355.6129642 | K38: 10000
A39: 29 | B39: 400150.4752 | C39: 7737.491036 | D39: 2262.508964 | E39: 10000 | G39: 29 | H39: 333695.5429 | I39: 9654.376171 | J39: 345.6238287 | K39: 10000
A40: 30 | B40: 392412.9842 | C40: 7781.239936 | D40: 2218.760064 | E40: 10000 | G40: 30 | H40: 324041.1668 | I40: 9664.375653 | J40: 335.6243471 | K40: 10000
A41: 31 | B41: 384631.7442 | C41: 7825.236198 | D41: 2174.763802 | E41: 10000 | G41: 31 | H41: 314376.7911 | I41: 9674.385491 | J41: 325.6145085 | K41: 10000
A42: 32 | B42: 376806.508 | C42: 7869.481221 | D42: 2130.518779 | E42: 10000 | G42: 32 | H42: 304702.4056 | I42: 9684.405698 | J42: 315.5943023 | K42: 10000
A43: 33 | B43: 368937.0268 | C43: 7913.976412 | D43: 2086.023588 | E43: 10000 | G43: 33 | H43: 295017.9999 | I43: 9694.436282 | J43: 305.5637177 | K43: 10000
A44: 34 | B44: 361023.0504 | C44: 7958.723185 | D44: 2041.276815 | E44: 10000 | G44: 34 | H44: 285323.5637 | I44: 9704.477256 | J44: 295.522744 | K44: 10000
A45: 35 | B45: 353064.3272 | C45: 8003.722963 | D45: 1996.277037 | E45: 10000 | G45: 35 | H45: 275619.0864 | I45: 9714.52863 | J45: 285.4713703 | K45: 10000
A46: 36 | B46: 345060.6042 | C46: 8048.977176 | D46: 1951.022824 | E46: 10000 | G46: 36 | H46: 265904.5578 | I46: 9724.590414 | J46: 275.409586 | K46: 10000
A47: 37 | B47: =+B46-C46 -> 337011.6271 | C47: =(E46-D47) -> 8094.487263 | D47: =((1+$D$3)^(30/360)-1)*B47 -> 1905.512737 | E47: =+D47+C47 -> 10000 | G47: 37 | H47: 256179.9674 | I47: 9734.66262 | J47: 265.3373802 | K47: 10000
A48: 38 | B48: 328917.1398 | C48: 8140.254671 | D48: 1859.745329 | E48: 10000 | G48: 38 | H48: 246445.3047 | I48: 9744.745258 | J48: 255.2547422 | K48: 10000
A49: 39 | B49: 320776.8851 | C49: 8186.280855 | D49: 1813.719145 | E49: 10000 | G49: 39 | H49: 236700.5595 | I49: 9754.838339 | J49: 245.1616612 | K49: 10000
A50: 40 | B50: 312590.6043 | C50: 8232.567277 | D50: 1767.432723 | E50: 10000 | G50: 40 | H50: 226945.7211 | I50: 9764.941874 | J50: 235.0581262 | K50: 10000
A51: 41 | B51: 304358.037 | C51: 8279.115409 | D51: 1720.884591 | E51: 10000 | G51: 41 | H51: 217180.7793 | I51: 9775.055873 | J51: 224.9441266 | K51: 10000
A52: 42 | B52: 296078.9216 | C52: 8325.926731 | D52: 1674.073269 | E52: 10000 | G52: 42 | H52: 207405.7234 | I52: 9785.180349 | J52: 214.8196514 | K52: 10000
A53: 43 | B53: 287752.9949 | C53: 8373.002731 | D53: 1626.997269 | E53: 10000 | G53: 43 | H53: 197620.543 | I53: 9795.31531 | J53: 204.6846899 | K53: 10000
A54: 44 | B54: 279379.9921 | C54: 8420.344906 | D54: 1579.655094 | E54: 10000 | G54: 44 | H54: 187825.2277 | I54: 9805.460769 | J54: 194.5392311 | K54: 10000
A55: 45 | B55: 270959.6472 | C55: 8467.95476 | D55: 1532.04524 | E55: 10000 | G55: 45 | H55: 178019.767 | I55: 9815.616736 | J55: 184.3832642 | K55: 10000
A56: 46 | B56: 262491.6925 | C56: 8515.833808 | D56: 1484.166192 | E56: 10000 | G56: 46 | H56: 168204.1502 | I56: 9825.783222 | J56: 174.2167783 | K56: 10000
A57: 47 | B57: 253975.8587 | C57: 8563.98357 | D57: 1436.01643 | E57: 10000 | G57: 47 | H57: 158378.367 | I57: 9835.960238 | J57: 164.0397624 | K57: 10000
A58: 48 | B58: 245411.8751 | C58: 8612.405578 | D58: 1387.594422 | E58: 10000 | G58: 48 | H58: 148542.4068 | I58: 9846.147794 | J58: 153.8522058 | K58: 10000
A59: 49 | B59: 236799.4695 | C59: 8661.101372 | D59: 1338.898628 | E59: 10000 | G59: 49 | H59: 138696.259 | I59: 9856.345903 | J59: 143.6540975 | K59: 10000
A60: 50 | B60: 228138.3681 | C60: 8710.072498 | D60: 1289.927502 | E60: 10000 | G60: 50 | H60: 128839.9131 | I60: 9866.554574 | J60: 133.4454265 | K60: 10000
A61: 51 | B61: 219428.2956 | C61: 8759.320514 | D61: 1240.679486 | E61: 10000 | G61: 51 | H61: 118973.3585 | I61: 9876.773818 | J61: 123.2261819 | K61: 10000
A62: 52 | B62: 210668.9751 | C62: 8808.846986 | D62: 1191.153014 | E62: 10000 | G62: 52 | H62: 109096.5847 | I62: 9887.003647 | J62: 112.9963528 | K62: 10000
A63: 53 | B63: 201860.1281 | C63: 8858.653488 | D63: 1141.346512 | E63: 10000 | G63: 53 | H63: 99209.58103 | I63: 9897.244072 | J63: 102.7559282 | K63: 10000
A64: 54 | B64: 193001.4747 | C64: 8908.741602 | D64: 1091.258398 | E64: 10000 | G64: 54 | H64: 89312.33696 | I64: 9907.495103 | J64: 92.50489707 | K64: 10000
A65: 55 | B65: 184092.733 | C65: 8959.112923 | D65: 1040.887077 | E65: 10000 | G65: 55 | H65: 79404.84186 | I65: 9917.756751 | J65: 82.2432485 | K65: 10000
A66: 56 | B66: 175133.6201 | C66: 9009.76905 | D66: 990.2309504 | E66: 10000 | G66: 56 | H66: 69487.0851 | I66: 9928.029029 | J66: 71.97097147 | K66: 10000
A67: 57 | B67: 166123.8511 | C67: 9060.711594 | D67: 939.2884063 | E67: 10000 | G67: 57 | H67: 59559.05608 | I67: 9938.311945 | J67: 61.68805497 | K67: 10000
A68: 58 | B68: 157063.1395 | C68: 9111.942174 | D68: 888.0578256 | E68: 10000 | G68: 58 | H68: 49620.74413 | I68: 9948.605512 | J68: 51.39448798 | K68: 10000
A69: 59 | B69: 147951.1973 | C69: 9163.46242 | D69: 836.5375798 | E69: 10000 | G69: 59 | H69: 39672.13862 | I69: 9958.909741 | J69: 41.09025947 | K69: 10000
A70: 60 | B70: 138787.7349 | C70: 9215.273969 | D70: 784.726031 | E70: 10000 | G70: 60 | H70: 29713.22888 | I70: 9969.224642 | J70: 30.77535839 | K70: 10000
